fUST/lending_fUST_20250515
["ID","MTS","AMOUNT","RATE_DAILY","PERIOD"]
[361151019,1747307451105,-3265.23,0.00017123,2]
[361151020,1747307451115,-718.61,0.00017123,2]
[361151021,1747307451125,-450.0,0.00017155,2]
[361151022,1747307451135,-222.42,0.00017155,2]
[361151023,1747307451145,-241.34,0.00017155,2]
[361151024,1747307451154,-450.0,0.00017155,2]
[361151025,1747307451163,-450.0,0.00017155,2]
[361151026,1747307451173,-450.0,0.00017155,2]
[361151027,1747307451182,-450.0,0.00017155,2]
[361151028,1747307451192,-241.35,0.00017155,2]
[361151029,1747307451202,-450.0,0.00017155,2]
[361151030,1747307451211,-450.0,0.00017155,2]
[361151031,1747307451221,-516.25,0.00017155,2]
[361151032,1747307451230,-572.57,0.00017155,2]
[361151033,1747307451240,-450.0,0.00017155,2]
[361151034,1747307451249,-450.0,0.00017155,2]
[361151035,1747307451258,-450.0,0.00017155,2]
[361151036,1747307451268,-1243.95,0.00017155,2]
[361151037,1747307451278,-450.0,0.00017155,2]
[361151038,1747307451287,-965.61,0.00017215,2]
[361151039,1747307451296,-450.0,0.00017215,2]
[361151040,1747307451305,-847.52,0.00017215,2]
[361151041,1747307451315,-450.0,0.00017215,2]
[361151042,1747307451324,-450.0,0.00017217,2]
[361151043,1747307451335,-438.07,0.00017217,2]
[361151044,1747307451344,-450.0,0.00017217,2]
[361151045,1747307451354,-528.39,0.00017217,2]
[361151046,1747307451363,-155.28,0.00017217,2]
[361151047,1747307451373,-450.0,0.00017217,2]
[361151048,1747307451385,-450.0,0.00017217,2]
[361151049,1747307451394,-450.0,0.00017217,2]
[361151050,1747307451404,-450.0,0.00017217,2]
[361151051,1747307451413,-450.0,0.00017217,2]
[361151052,1747307451423,-450.0,0.00017217,2]
[361151053,1747307451432,-217.39,0.00017217,2]
[361151054,1747307451442,-192.89,0.00017217,2]
[361151055,1747307451451,-523.86,0.00017217,2]
[361151056,1747307451462,-240.34,0.00017217,2]
[361151057,1747307451472,-560.98,0.00017217,2]
[361151058,1747307451482,-450.0,0.00017217,2]
[361151059,1747307451491,-265.91,0.00017217,2]
[361151060,1747307451500,-450.0,0.00017217,2]
[361151061,1747307451510,-425.88,0.00017217,2]
[361151062,1747307451519,-507.85,0.00017217,2]
[361151063,1747307451529,-450.0,0.00017217,2]
[361151064,1747307451539,-450.0,0.00017217,2]
[361151065,1747307451548,-260.94,0.00017217,2]
[361151066,1747307451558,-188.69,0.00017217,2]
[361151067,1747307451567,-476.4,0.00017217,2]
[361151068,1747307451577,-487.01,0.00017217,2]
[361151069,1747307451586,-450.0,0.00017217,2]
[361151070,1747307451596,-208.32,0.00017217,2]
[361151071,1747307451605,-450.0,0.00017217,2]
[361151072,1747307451615,-450.0,0.00017217,2]
[361151073,1747307451625,-394.01,0.00017217,2]
[361151074,1747307451634,-500.46,0.00017217,2]
[361151075,1747307451644,-240.36,0.00017217,2]
[361151076,1747307451654,-934.29,0.00017217,2]
[361151077,1747307451664,-450.0,0.00017217,2]
[361151078,1747307451674,-450.0,0.00017217,2]
[361151079,1747307451683,-450.0,0.00017217,2]
[361151080,1747307451693,-450.0,0.0001726,2]
[361151081,1747307451703,-450.0,0.0001726,2]
[361151082,1747307451713,-2349.29,0.0001726,2]
[361151083,1747307451724,-997.67,0.0001726,2]
[361151084,1747307451733,-505.08,0.0001726,2]
[361151085,1747307451742,-450.0,0.0001726,2]
[361151086,1747307451752,-538.1,0.0001726,2]
[361151087,1747307451762,-823.43,0.0001726,2]
[361151088,1747307451772,-450.0,0.0001726,2]
[361151089,1747307451781,-483.61,0.0001726,2]
[361151090,1747307451791,-450.0,0.0001726,2]
[361151091,1747307451801,-1455.36,0.0001726,2]
[361151092,1747307451810,-476.62,0.0001726,2]
[361151093,1747307451821,-450.0,0.0001726,2]
[361151094,1747307451831,-450.0,0.0001726,2]
[361151095,1747307451841,-2013.71,0.0001726,2]
[361151096,1747307451851,-450.0,0.0001726,2]
[361151097,1747307451860,-649.95,0.0001726,2]
[361151098,1747307451870,-3265.23,0.0001726,2]
[361151099,1747307451880,-718.61,0.0001726,2]
[361151100,1747307451889,-207.73,0.00017292,2]
[361151101,1747307451899,-450.0,0.00017292,2]
[361151102,1747307451908,-228.98,0.00017292,2]
[361151103,1747307451917,-450.0,0.00017292,2]
[361151104,1747307451928,-450.0,0.00017292,2]
[361151105,1747307451937,-450.0,0.00017292,2]
[361151106,1747307451947,-450.0,0.00017292,2]
[361151107,1747307451956,-450.0,0.00017292,2]
[361151108,1747307451966,-241.82,0.00017292,2]
[361151109,1747307451976,-307.68,0.00017292,2]
[361151110,1747307451985,-1243.95,0.00017292,2]
[361151111,1747307451994,-450.0,0.00017292,2]
[361151112,1747307452004,-965.61,0.00017352,2]
[361151113,1747307452013,-450.0,0.00017352,2]
[361151114,1747307452023,-847.52,0.00017352,2]
[361151115,1747307452031,-450.0,0.00017352,2]
[361151116,1747307452040,-450.0,0.00017354,2]
[361151117,1747307452050,-450.0,0.00017354,2]
[361151118,1747307452060,-450.0,0.00017354,2]
[361151119,1747307452070,-450.0,0.00017354,2]
[361151120,1747307452079,-359.12,0.00017354,2]
[361151121,1747307452089,-450.0,0.00017354,2]
[361151122,1747307452099,-450.0,0.00017354,2]
[361151123,1747307452108,-450.0,0.00017354,2]
[361151124,1747307452118,-450.0,0.00017354,2]
[361151125,1747307452127,-213.67,0.00017354,2]
[361151126,1747307452137,-414.62,0.00017354,2]
[361151127,1747307452146,-450.0,0.00017354,2]
[361151128,1747307452156,-450.0,0.00017354,2]
[361151129,1747307452166,-450.0,0.00017354,2]
[361151130,1747307452176,-450.0,0.00017354,2]
[361151131,1747307452185,-934.29,0.00017354,2]
[361151132,1747307452196,-450.0,0.00017354,2]
[361151133,1747307452205,-450.0,0.00017354,2]
[361151134,1747307452215,-450.0,0.00017354,2]
[361151135,1747307452225,-450.0,0.00017397,2]
[361151136,1747307452234,-450.0,0.00017397,2]
[361151137,1747307452245,-2349.29,0.00017397,2]
[361151138,1747307452254,-997.67,0.00017397,2]
[361151139,1747307452264,-505.08,0.00017397,2]
[361151140,1747307452273,-450.0,0.00017397,2]
[361151141,1747307452282,-538.1,0.00017397,2]
[361151142,1747307452292,-823.43,0.00017397,2]
[361151143,1747307452301,-450.0,0.00017397,2]
[361151144,1747307452311,-483.61,0.00017397,2]
[361151145,1747307452322,-450.0,0.00017397,2]
[361151146,1747307452332,-1455.36,0.00017397,2]
[361151147,1747307452341,-476.62,0.00017397,2]
[361151148,1747307452352,-450.0,0.00017397,2]
[361151149,1747307452363,-450.0,0.00017397,2]
[361151150,1747307452374,-2013.71,0.00017397,2]
[361151151,1747307452386,-450.0,0.00017397,2]
[361151152,1747307452395,-649.95,0.00017397,2]
[361151153,1747307452404,-3265.23,0.00017397,2]
[361151154,1747307452414,-718.61,0.00017397,2]
[361151155,1747307452423,-1000.0,0.00017421,2]
[361151156,1747307452434,-1002.21717576,0.00017421,2]
[361151157,1747307452443,-502.45172187,0.00017421,2]
[361151158,1747307452453,-450.0,0.00017429,2]
[361151159,1747307452463,-450.0,0.00017429,2]
[361151160,1747307452473,-480.549367,0.00017429,2]
[361151161,1747307452483,-450.0,0.00017429,2]
[361151162,1747307452492,-450.0,0.00017429,2]
[361151163,1747307452587,-450.0,0.00017429,2]
[361151164,1747307452597,-1243.95,0.00017429,2]
[361151165,1747307452607,-450.0,0.00017429,2]
[361151166,1747307452617,-965.61,0.00017489,2]
[361151167,1747307452627,-450.0,0.00017489,2]
[361151168,1747307452637,-847.52,0.00017489,2]
[361151169,1747307452647,-450.0,0.00017489,2]
[361151170,1747307452656,-151.0,0.00017489,2]
[361151171,1747307452666,-151.0,0.00017489,2]
[361151172,1747307452675,-151.0,0.00017489,2]
[361151173,1747307452684,-450.0,0.00017491,2]
[361151174,1747307452694,-450.0,0.00017491,2]
[361151175,1747307452703,-434.38,0.00017491,2]
[361151176,1747307452713,-450.0,0.00017491,2]
[361151177,1747307452723,-450.0,0.00017491,2]
[361151178,1747307452733,-450.0,0.00017491,2]
[361151179,1747307452743,-450.0,0.00017491,2]
[361151180,1747307452753,-450.0,0.00017491,2]
[361151181,1747307452763,-450.0,0.00017491,2]
[361151182,1747307452772,-450.0,0.00017491,2]
[361151183,1747307452782,-450.0,0.00017491,2]
[361151184,1747307452791,-450.0,0.00017491,2]
[361151185,1747307452801,-934.29,0.00017491,2]
[361151186,1747307452810,-450.0,0.00017491,2]
[361151187,1747307452823,-181.56,0.00017491,2]
[361151188,1747307452833,-450.0,0.00017491,2]
[361151189,1747307452843,-450.0,0.00017534,2]
[361151190,1747307452853,-450.0,0.00017534,2]
[361151191,1747307452863,-2349.29,0.00017534,2]
[361151192,1747307452872,-997.67,0.00017534,2]
[361151193,1747307452882,-505.08,0.00017534,2]
[361151194,1747307452892,-450.0,0.00017534,2]
[361151195,1747307452901,-538.1,0.00017534,2]
[361151196,1747307452911,-823.43,0.00017534,2]
[361151197,1747307452919,-450.0,0.00017534,2]
[361151198,1747307452929,-483.61,0.00017534,2]
[361151199,1747307452939,-450.0,0.00017534,2]
[361151200,1747307452949,-151.0,0.00017534,2]
[361151201,1747307452959,-151.0,0.00017534,2]
[361151202,1747307452969,-1455.36,0.00017534,2]
[361151203,1747307452978,-151.0,0.00017534,2]
[361151204,1747307452988,-151.0,0.00017534,2]
[361151205,1747307452997,-151.0,0.00017534,2]
[361151206,1747307453007,-151.0,0.00017534,2]
[361151207,1747307453016,-476.62,0.00017534,2]
[361151208,1747307453025,-450.0,0.00017534,2]
[361151209,1747307453034,-450.0,0.00017534,2]
[361151210,1747307453044,-2013.71,0.00017534,2]
[361151211,1747307453054,-163.57376729,0.00017534,2]
[361151212,1747307453069,-649.95,0.00017534,2]
[361151213,1747307453079,-3265.23,0.00017534,2]
[361151214,1747307453088,-718.61,0.00017534,2]
[361151215,1747307453098,-652.61296533,0.00017557,2]
[361151216,1747307453107,-450.0,0.00017566,2]
[361151217,1747307453117,-450.0,0.00017566,2]
[361151218,1747307453127,-450.0,0.00017566,2]
[361151219,1747307453136,-456.52,0.00017566,2]
[361151220,1747307453146,-450.0,0.00017566,2]
[361151221,1747307453156,-1243.95,0.00017566,2]
[361151222,1747307453165,-450.0,0.00017566,2]
[361151223,1747307453175,-151.0,0.000176,2]
[361151224,1747307453185,-151.0,0.000176,2]
[361151225,1747307453194,-1445.44980587,0.000176,2]
[361151226,1747307453204,-1445.44980579,0.000176,2]
[361151227,1747307453214,-1445.44980579,0.000176,2]
[361151228,1747307453224,-1445.44980579,0.000176,2]
[361151229,1747307453233,-1445.44980579,0.000176,2]
[361151230,1747307453243,-1445.44980579,0.000176,2]
[361151231,1747307453253,-1445.44980579,0.000176,2]
[361151232,1747307453263,-1445.44980579,0.000176,2]
[361151233,1747307453272,-1445.44980579,0.000176,2]
[361151234,1747307453282,-1445.44980579,0.000176,2]
[361151235,1747307453292,-1445.44980579,0.000176,2]
[361151236,1747307453302,-1445.44980579,0.000176,2]
[361151237,1747307453311,-1445.44980579,0.000176,2]
[361151238,1747307453323,-1445.44980579,0.000176,2]
[361151239,1747307453332,-1445.44980579,0.000176,2]
[361151240,1747307453342,-185.672277,0.000176,2]
[361151241,1747307453351,-1445.44980579,0.000176,2]
[361151242,1747307453361,-1445.44980579,0.000176,2]
[361151243,1747307453371,-1445.44980579,0.000176,2]
[361151244,1747307453383,-1445.44980579,0.000176,2]
[361151245,1747307453394,-1445.44980579,0.000176,2]
[361151246,1747307453406,-1445.44980579,0.000176,2]
[361151247,1747307453416,-185.672277,0.000176,2]
[361151248,1747307453427,-151.0,0.000176,2]
[361151249,1747307453436,-1445.44980579,0.00017624,2]
[361151250,1747307453446,-965.61,0.00017626,2]
[361151251,1747307453455,-450.0,0.00017626,2]
[361151252,1747307453467,-847.52,0.00017626,2]
[361151253,1747307453477,-450.0,0.00017626,2]
[361151254,1747307453487,-450.0,0.00017628,2]
[361151255,1747307453497,-450.0,0.00017628,2]
[361151256,1747307453506,-223.7,0.00017628,2]
[361151257,1747307453516,-422.66,0.00017628,2]
[361151258,1747307453526,-450.0,0.00017628,2]
[361151259,1747307453535,-137.71743427,0.00017628,2]
[361151260,1747307453652,-312.28256573,0.00017628,2]
[361151261,1747307453663,-157.36,0.00017628,2]
[361151262,1747307453672,-212.17,0.00017628,2]
[361151263,1747307453682,-450.0,0.00017628,2]
[361151264,1747307453691,-450.0,0.00017628,2]
[361151265,1747307453700,-450.0,0.00017628,2]
[361151266,1747307453710,-605.36527761,0.00017628,2]
[361151268,1747307643864,-246.81407492,0.00015378,2]
[361151273,1747307985285,310.39,0.0002,120]
[361151275,1747308346420,-365.71810477,0.00013426,2]
[361151280,1747308547140,-5000.0,0.00013562,2]
[361151281,1747308547161,-301.170498,0.00013699,2]
[361151282,1747308547185,-112.74826273,0.00015091,2]
[361151303,1747308631807,-5000.0,0.0001494,2]
[361151304,1747308631817,-137.25173727,0.00015091,2]
[361151305,1747308631831,-2708.5738995,0.00015247,2]
[361151307,1747308631841,-1200.0,0.00015265,2]
[361151309,1747308631851,-250.0,0.00015266,2]
[361151310,1747308631859,-257.47697829,0.00016338,2]
[361151311,1747308631869,-300.0,0.0001643,2]
[361151312,1747308631878,-176.0,0.00016431,2]
[361151313,1747308631886,-300.0,0.00016431,2]
[361151314,1747308631898,-500.0,0.00016437,2]
[361151315,1747308631905,-500.0,0.00016437,2]
[361151316,1747308631912,-500.0,0.00016437,2]
[361151317,1747308631919,-358.92979051,0.00016437,2]
[361151318,1747308631927,-500.0,0.00016437,2]
[361151319,1747308631933,-500.0,0.00016437,2]
[361151320,1747308631941,-500.0,0.00016437,2]
[361151321,1747308631948,-380.46089973,0.00016437,2]
[361151322,1747308631955,-247.13241149,0.00016437,2]
[361151323,1747308631965,-500.0,0.00016437,2]
[361151324,1747308631975,-500.0,0.00016437,2]
[361151325,1747308631984,-500.0,0.00016437,2]
[361151326,1747308631993,-500.0,0.00016437,2]
[361151327,1747308632003,-500.0,0.00016437,2]
[361151328,1747308632013,-500.0,0.00016437,2]
[361151329,1747308632022,-500.0,0.00016437,2]
[361151330,1747308632031,-524.00629886,0.00016437,2]
[361151331,1747308632041,-500.0,0.00016437,2]
[361151332,1747308632051,-500.0,0.00016437,2]
[361151333,1747308632061,-500.0,0.00016437,2]
[361151334,1747308632071,-500.0,0.00016437,2]
[361151335,1747308632081,-500.0,0.00016437,2]
[361151336,1747308632090,-450.0,0.00016438,2]
[361151337,1747308632100,-400.0,0.00016438,2]
[361151338,1747308632110,-400.0,0.00016438,2]
[361151339,1747308632119,-400.6170482,0.00016438,2]
[361151340,1747308632131,-289.63593826,0.00016438,2]
[361151341,1747308632140,-240.45742869,0.00016438,2]
[361151342,1747308632150,-521.42349721,0.00016438,2]
[361151343,1747308632159,-450.0,0.00016438,2]
[361151344,1747308632169,-400.0,0.00016438,2]
[361151345,1747308632179,-450.0,0.00016438,2]
[361151346,1747308632188,-450.0,0.00016438,2]
[361151347,1747308632197,-330.00234385,0.00016438,2]
[361151348,1747308632206,-450.0,0.00016438,2]
[361151349,1747308632216,-400.0,0.00016438,2]
[361151350,1747308632225,-450.0,0.00016438,2]
[361151351,1747308632235,-596.63782429,0.00016438,2]
[361151352,1747308632244,-450.00306864,0.00016438,2]
[361151353,1747308632254,-450.0,0.00016438,2]
[361151354,1747308632263,-135.97763467,0.00016438,2]
[361151355,1747308632275,-314.02236533,0.00016438,2]
[361151356,1747308632286,-400.427057,0.00016438,2]
[361151357,1747308632295,-400.0,0.00016438,2]
[361151358,1747308632305,-450.0,0.00016438,2]
[361151359,1747308632315,-450.0,0.00016438,2]
[361151360,1747308632325,-450.0,0.00016438,2]
[361151361,1747308632334,-450.0,0.00016438,2]
[361151362,1747308632343,-450.0,0.00016438,2]
[361151363,1747308632353,-400.0,0.00016438,2]
[361151364,1747308632363,-400.0,0.00016438,2]
[361151365,1747308632372,-450.0,0.00016438,2]
[361151366,1747308632383,-450.0,0.00016438,2]
[361151367,1747308632392,-450.0,0.00016438,2]
[361151368,1747308632402,-401.49861839,0.00016438,2]
[361151369,1747308632413,-400.0,0.00016438,2]
[361151370,1747308632423,-450.0,0.00016438,2]
[361151371,1747308632432,-401.88005265,0.00016438,2]
[361151372,1747308632441,-400.0,0.00016438,2]
[361151373,1747308632450,-1000.0,0.00016438,2]
[361151374,1747308632459,-402.43105218,0.00016438,2]
[361151375,1747308632468,-400.0,0.00016438,2]
[361151376,1747308632477,-400.0,0.00016438,2]
[361151377,1747308632487,-523.07,0.00016438,2]
[361151378,1747308632496,-400.0,0.00016438,2]
[361151379,1747308632504,-450.0,0.00016438,2]
[361151380,1747308632514,-400.0,0.00016438,2]
[361151381,1747308632523,-400.0,0.00016438,2]
[361151382,1747308632532,-500.0,0.00016438,2]
[361151383,1747308632541,-450.0,0.00016438,2]
[361151384,1747308632550,-400.0,0.00016438,2]
[361151385,1747308632559,-400.0,0.00016438,2]
[361151386,1747308632568,-400.0,0.00016438,2]
[361151387,1747308632578,-400.0,0.00016438,2]
[361151388,1747308632587,-400.0,0.00016438,2]
[361151389,1747308632596,-400.0,0.00016438,2]
[361151390,1747308632605,-471.55,0.00016438,2]
[361151391,1747308632614,-400.0,0.00016438,2]
[361151392,1747308632623,-400.0,0.00016438,2]
[361151393,1747308632633,-400.0,0.00016438,2]
[361151394,1747308632641,-358.0,0.00016438,2]
[361151395,1747308632650,-275.52759571,0.00016438,2]
[361151396,1747308632659,-450.0,0.00016438,2]
[361151397,1747308632668,-400.0,0.00016438,2]
[361151398,1747308632677,-400.0,0.00016438,2]
[361151399,1747308632686,-450.0,0.00016438,2]
[361151400,1747308632695,-400.0,0.00016438,2]
[361151401,1747308632704,-400.0,0.00016438,2]
[361151402,1747308632715,-493.75,0.00016438,2]
[361151403,1747308632724,-400.63630823,0.00016438,2]
[361151404,1747308632733,-400.0,0.00016438,2]
[361151405,1747308632743,-400.0,0.00016438,2]
[361151406,1747308632752,-400.0,0.00016438,2]
[361151407,1747308632762,-450.0,0.00016438,2]
[361151408,1747308632772,-493.02,0.00016438,2]
[361151409,1747308632782,-450.0,0.00016438,2]
[361151410,1747308632791,-400.0,0.00016438,2]
[361151411,1747308632801,-400.0,0.00016438,2]
[361151412,1747308632811,-400.0,0.00016438,2]
[361151413,1747308632820,-400.0,0.00016438,2]
[361151414,1747308632832,-400.0,0.00016438,2]
[361151415,1747308632842,-450.0,0.00016438,2]
[361151416,1747308632851,-2018.92,0.00016438,2]
[361151417,1747308632860,-400.0,0.00016438,2]
[361151418,1747308632870,-400.0,0.00016438,2]
[361151419,1747308632880,-450.0,0.00016438,2]
[361151420,1747308632890,-400.0,0.00016438,2]
[361151421,1747308632900,-408.46,0.00016438,2]
[361151422,1747308632910,-400.0,0.00016438,2]
[361151423,1747308632919,-407.03280978,0.00016438,2]
[361151424,1747308632929,-400.0,0.00016438,2]
[361151425,1747308632938,-400.27378583,0.00016438,2]
[361151426,1747308632948,-450.0,0.00016438,2]
[361151427,1747308632957,-400.0,0.00016438,2]
[361151428,1747308632966,-400.61526776,0.00016438,2]
[361151429,1747308632976,-407.66773751,0.00016438,2]
[361151430,1747308632985,-450.0,0.00016438,2]
[361151431,1747308632995,-400.58747167,0.00016438,2]
[361151432,1747308633006,-401.98331382,0.00016438,2]
[361151433,1747308633016,-450.0,0.00016438,2]
[361151434,1747308633025,-450.0,0.00016438,2]
[361151435,1747308633036,-400.0,0.00016438,2]
[361151436,1747308633048,-974.74,0.00016438,2]
[361151437,1747308633060,-400.0,0.00016438,2]
[361151438,1747308633071,-450.0,0.00016438,2]
[361151439,1747308633081,-450.0,0.00016438,2]
[361151440,1747308633091,-450.0,0.00016438,2]
[361151441,1747308633101,-450.0,0.00016438,2]
[361151442,1747308633111,-450.0,0.00016438,2]
[361151443,1747308633122,-400.0,0.00016438,2]
[361151444,1747308633132,-400.0,0.00016438,2]
[361151445,1747308633142,-400.0,0.00016438,2]
[361151446,1747308633152,-450.0,0.00016438,2]
[361151447,1747308633163,-400.0,0.00016438,2]
[361151448,1747308633173,-875.15,0.00016438,2]
[361151449,1747308633182,-450.0,0.00016438,2]
[361151450,1747308633192,-466.77,0.00016438,2]
[361151451,1747308633202,-424.21,0.00016438,2]
[361151452,1747308633212,-718.5,0.00016438,2]
[361151453,1747308633222,-504.41227335,0.00016438,2]
[361151454,1747308633232,-383.10934837,0.00016438,2]
[361151455,1747308633241,-453.15,0.00016438,2]
[361151456,1747308633251,-450.0,0.00016438,2]
[361151457,1747308633261,-521.48,0.00016438,2]
[361151458,1747308633271,-450.0,0.00016438,2]
[361151459,1747308633281,-450.0,0.00016438,2]
[361151460,1747308633291,-400.0,0.00016438,2]
[361151461,1747308633301,-450.0,0.00016438,2]
[361151462,1747308633311,-401.14413636,0.00016438,2]
[361151463,1747308633321,-400.0,0.00016438,2]
[361151464,1747308633330,-450.0,0.00016438,2]
[361151465,1747308633341,-450.0,0.00016438,2]
[361151466,1747308633351,-1163.57,0.00016438,2]
[361151467,1747308633361,-450.0,0.00016438,2]
[361151468,1747308633371,-675.49,0.00016438,2]
[361151469,1747308633381,-450.0,0.00016438,2]
[361151470,1747308633391,-450.0,0.00016438,2]
[361151471,1747308633401,-450.0,0.00016438,2]
[361151472,1747308633413,-450.0,0.00016438,2]
[361151473,1747308633422,-829.3,0.00016438,2]
[361151474,1747308633432,-450.0,0.00016438,2]
[361151475,1747308633441,-400.0,0.00016438,2]
[361151476,1747308633451,-400.0,0.00016438,2]
[361151477,1747308633461,-400.0,0.00016438,2]
[361151478,1747308633471,-450.0,0.00016438,2]
[361151479,1747308633481,-578.73,0.00016438,2]
[361151480,1747308633491,-400.0,0.00016438,2]
[361151481,1747308633501,-2308.96,0.00016438,2]
[361151482,1747308633511,-683.97,0.00016438,2]
[361151483,1747308633522,-381.91,0.00016438,2]
[361151484,1747308633531,-574.97,0.00016438,2]
[361151485,1747308633541,-536.36,0.00016438,2]
[361151486,1747308633551,-400.0,0.00016438,2]
[361151487,1747308633560,-450.0,0.00016438,2]
[361151488,1747308633570,-589.85,0.00016438,2]
[361151489,1747308633581,-450.0,0.00016438,2]
[361151490,1747308633591,-342.38299084,0.00016438,2]
[361151491,1747308633601,-450.0,0.00016438,2]
[361151492,1747308633612,-488.49,0.00016438,2]
[361151493,1747308633621,-600.33,0.00016438,2]
[361151494,1747308633632,-423.96255941,0.00016438,2]
[361151495,1747308633642,-1206.5,0.00016438,2]
[361151496,1747308633652,-3449.38,0.00016438,2]
[361151497,1747308633663,-450.0,0.00016438,2]
[361151498,1747308633673,-536.72973138,0.00016574,2]
[361151499,1747308633684,-450.0,0.00016575,2]
[361151500,1747308633694,-450.0,0.00016575,2]
[361151501,1747308633705,-450.0,0.00016575,2]
[361151502,1747308633715,-450.0,0.00016575,2]
[361151503,1747308633724,-450.0,0.00016575,2]
[361151504,1747308633735,-450.0,0.00016575,2]
[361151505,1747308633745,-351.85658622,0.00016575,2]
[361151506,1747308633755,-578.595197,0.00016575,2]
[361151507,1747308633765,-450.0,0.00016575,2]
[361151508,1747308633775,-450.0,0.00016575,2]
[361151509,1747308633785,-153.8,0.00016575,2]
[361151510,1747308633795,-450.0,0.00016575,2]
[361151511,1747308633804,-450.0,0.00016575,2]
[361151512,1747308633814,-450.0,0.00016575,2]
[361151513,1747308633827,-450.0,0.00016575,2]
[361151514,1747308633837,-450.0,0.00016575,2]
[361151515,1747308633847,-450.0,0.00016575,2]
[361151516,1747308633857,-189.65,0.00016575,2]
[361151517,1747308633867,-251.29,0.00016575,2]
[361151518,1747308633877,-260.31,0.00016575,2]
[361151519,1747308633887,-283.49,0.00016575,2]
[361151520,1747308633898,-551.18,0.00016575,2]
[361151521,1747308633908,-450.0,0.00016575,2]
[361151522,1747308633919,-301.54,0.00016575,2]
[361151523,1747308633929,-2018.92,0.00016575,2]
[361151524,1747308633939,-450.0,0.00016575,2]
[361151525,1747308633950,-450.0,0.00016575,2]
[361151526,1747308633959,-226.74,0.00016575,2]
[361151527,1747308633969,-222.41,0.00016575,2]
[361151528,1747308633979,-450.0,0.00016575,2]
[361151529,1747308633990,-974.74,0.00016575,2]
[361151530,1747308634000,-450.0,0.00016575,2]
[361151531,1747308634010,-450.0,0.00016575,2]
[361151532,1747308634020,-156.19,0.00016575,2]
[361151533,1747308634029,-450.0,0.00016575,2]
[361151534,1747308634039,-450.0,0.00016575,2]
[361151535,1747308634050,-450.0,0.00016575,2]
[361151536,1747308634060,-875.15,0.00016575,2]
[361151537,1747308634070,-583.17,0.00016575,2]
[361151538,1747308634080,-466.77,0.00016575,2]
[361151539,1747308634091,-718.5,0.00016575,2]
[361151540,1747308634100,-168.39,0.00016575,2]
[361151541,1747308634110,-450.0,0.00016575,2]
[361151542,1747308634120,-155.58,0.00016575,2]
[361151543,1747308634129,-450.0,0.00016575,2]
[361151544,1747308634138,-450.0,0.00016575,2]
[361151545,1747308634147,-450.0,0.00016575,2]
[361151546,1747308634156,-1163.57,0.00016575,2]
[361151547,1747308634166,-450.0,0.00016575,2]
[361151548,1747308634176,-675.49,0.00016575,2]
[361151549,1747308634186,-450.0,0.00016575,2]
[361151550,1747308634197,-450.0,0.00016575,2]